lending/lending_fUSD_20251114
["ID","MTS","AMOUNT","RATE_DAILY","PERIOD"]
[393986418,1763162804849,-500.0,0.00015673,2]
[393986419,1763162804873,-500.0,0.00015673,2]
[393986420,1763162804896,-500.0,0.00015673,2]
[393986421,1763162804920,-500.0,0.00015673,2]
[393986422,1763162804943,-157.53230103,0.00015673,2]
[393986423,1763162813810,1425.64167058,0.000162,5]
[393986424,1763162816641,-149.81644609,0.00015673,2]
[393986425,1763162816664,-500.0,0.00015673,2]
[393986426,1763162816687,-500.0,0.00015673,2]
[393986427,1763162816710,-500.0,0.00015673,2]
[393986428,1763162816735,-500.0,0.00015673,2]
[393986429,1763162816759,-500.0,0.00015673,2]
[393986430,1763162816782,-500.0,0.00015673,2]
[393986431,1763162816806,-163.52299999,0.00015695,2]
[393986432,1763162816828,-500.0,0.00015695,2]
[393986433,1763162816850,-208.04845264,0.00015695,2]
[393986434,1763162816878,-231.2556373,0.00015695,2]
[393986435,1763162816902,-300.0,0.00015695,2]
[393986436,1763162816925,-447.35646398,0.00015695,2]
[393986437,1763162821706,500.0,0.000159,5]
[393986438,1763162838798,-154.51270838,0.00015608,2]
[393986439,1763162854786,2500.0,0.00015596,2]
[393986440,1763162855349,220.10126254,0.00015596,2]
[393986442,1763162886169,2568.49846781,0.0001439,2]
[393986443,1763162889052,4402.38485289,0.00015608,2]
[393986444,1763162889079,186.54635778,0.00015608,2]
[393986445,1763162889309,1000.0,0.000135,2]
[393986446,1763162889410,305.08951291,0.000125,2]
[393986447,1763162893635,4203.25552205,0.00015608,2]
[393986449,1763162898286,388.66486837,7.888e-05,2]
[393986450,1763162899905,-999.0,0.00015641,3]
[393986451,1763162902849,155.49904208,0.00015563,2]
[393986452,1763162904878,222.26716291,0.0001,2]
[393986454,1763162910860,266.25276174,0.000107,2]
[393986455,1763162913283,490.05013836,0.00014999,2]
[393986458,1763162915311,-2775.05222201,0.00015673,2]
[393986459,1763162917391,4449.90555598,0.00015,3]
[393986460,1763162917417,10000.01,0.00015,3]
[393986461,1763162917443,10000.01,0.00015,3]
[393986462,1763162917470,10000.01,0.00015,3]
[393986463,1763162917496,10000.01,0.00015,3]
[393986464,1763162917522,10000.01,0.00015,3]
[393986465,1763162917548,10000.01,0.00015,3]
[393986466,1763162917574,10000.01,0.00015,3]
[393986467,1763162917601,10000.01,0.00015,3]
[393986468,1763162917628,6867.94089491,0.00015,3]
[393986469,1763162917656,10000.01,0.00015,3]
[393986470,1763162917683,10000.01,0.00015,3]
[393986471,1763162917711,156388.57626625,0.00015,3]
[393986472,1763162918219,1293.24319673,0.0001,2]
[393986474,1763162921141,1995.29524689,0.00013699,2]
[393986475,1763162921539,-200.0,0.00015611,2]
[393986476,1763162952492,500.0,0.00015673,2]
[393986477,1763162952560,500.0,0.00015673,2]
[393986478,1763162952642,500.0,0.00015673,2]
[393986479,1763162953027,1852.42,0.00015623,2]
[393986480,1763162956113,1000.0,0.00015596,2]
[393986481,1763162963910,5647.59,0.00015596,2]
[393986482,1763162963938,10000.01,0.00015596,2]
[393986483,1763162963965,10000.01,0.00015596,2]
[393986484,1763162963993,10000.01,0.00015596,2]
[393986485,1763162964343,10000.01,0.00015596,2]
[393986486,1763162964380,10000.01,0.00015596,2]
[393986487,1763162964407,10000.01,0.00015596,2]
[393986488,1763162964432,10000.01,0.00015596,2]
[393986489,1763162964458,10000.01,0.00015596,2]
[393986490,1763162985753,374.08414925,0.00015584,2]
[393986491,1763163001166,1200.0,0.00015595,2]
[393986492,1763163001250,300.0,0.00015595,2]
[393986493,1763163008612,8125.92585075,7.945e-05,2]
[393986494,1763163008639,392.75935425,7.945e-05,2]
[393986502,1763163032216,-259.11,0.00015596,2]
[393986504,1763163032255,-389.2253,0.00015596,2]
[393986505,1763163032266,-283.551,0.00015596,2]
[393986506,1763163032321,-757.9572,0.00015596,2]
[393986507,1763163032383,-105583.6933,0.00015596,2]
[393986508,1763163032392,-2500.0,0.00015596,2]
[393986509,1763163032401,-151.0,0.00015686,2]
[393986510,1763163032410,-151.0,0.00015686,2]
[393986511,1763163032419,-151.0,0.00015686,2]
[393986512,1763163032429,-151.0,0.00015686,2]
[393986513,1763163032438,-151.0,0.00015686,2]
[393986514,1763163032447,-151.0,0.00015686,2]
[393986515,1763163032457,-151.0,0.00015686,2]
[393986516,1763163032465,-250.0,0.00015691,2]
[393986517,1763163032474,-151.0,0.00015696,2]
[393986518,1763163032484,-151.0,0.00015696,2]
[393986519,1763163032493,-151.0,0.00015696,2]
[393986520,1763163032502,-151.0,0.00015696,2]
[393986522,1763163032511,-151.0,0.00015696,2]
[393986524,1763163032520,-151.0,0.00015696,2]
[393986526,1763163032528,-151.0,0.00015696,2]
[393986527,1763163032538,-500.0,0.00015795,2]
[393986529,1763163032547,-4227.23,0.00015824,2]
[393986531,1763163032557,-3146.97185636,0.00015863,2]
[393986534,1763163032571,-863.87813322,0.00015863,2]
[393986536,1763163032582,-578.08122103,0.00015863,2]
[393986538,1763163032590,-169.14678017,0.00015863,2]
[393986540,1763163032602,-412.15158722,0.00015863,2]
[393986546,1763163032642,-1071.84474465,0.00015863,2]
[393986548,1763163032653,-2550.11240996,0.00015863,2]
[393986550,1763163032662,-154.51270838,0.0001599,2]
[393986552,1763163032671,-495.63391684,0.00015991,2]
[393986555,1763163032681,-25008.21660151,0.00015992,2]
[393986925,1763163038273,-317.15422983,0.00015992,2]
[393986926,1763163038402,-2179.88125902,0.00015992,2]
[393987140,1763163040307,-112875.45679265,0.00015992,2]
[393987143,1763163040321,-4588.93121061,0.00016117,2]
[393987146,1763163040330,-4203.255522,0.00016117,2]
[393987149,1763163040339,-150.99,0.00016127,2]
[393987152,1763163040349,-1000.0,0.00016134,2]
[393987154,1763163040358,-1000.0,0.00016221,2]
[393987156,1763163040368,-1000.0,0.00016221,2]
[393987158,1763163040377,-1000.0,0.00016221,2]
[393987160,1763163040386,-1000.0,0.00016221,2]
[393987162,1763163040395,-737.43936952,0.00016221,2]
[393987164,1763163040404,-391.45,0.00016252,2]
[393987166,1763163040413,-4227.23,0.00016252,2]
[393987168,1763163040422,-200.0,0.00016321,2]
[393987170,1763163040431,-1329.31,0.00016321,2]
[393987172,1763163040440,-171.08533433,0.00016338,2]
[393987174,1763163040448,-235.84,0.00016352,2]
[393987176,1763163040457,-154.51270838,0.00016372,2]
[393987178,1763163040466,-4588.93121061,0.00016372,2]
[393987180,1763163040475,-4203.255522,0.00016372,2]
[393987182,1763163040484,-12923.35,0.00016415,2]
[393987184,1763163040493,-500.0,0.00016438,2]
[393987186,1763163040503,-500.0,0.00016438,2]
[393987188,1763163040511,-500.0,0.00016438,2]
[393987190,1763163040520,-500.0,0.00016438,2]
[393987192,1763163040529,-500.0,0.00016438,2]
[393987194,1763163040538,-203.5462204,0.00016438,2]
[393987195,1763163040547,-500.0,0.00016438,2]
[393987198,1763163040556,-500.0,0.00016438,2]
[393987200,1763163040567,-500.0,0.00016438,2]
[393987202,1763163040577,-500.0,0.00016438,2]
[393987203,1763163040586,-617.86478769,0.00016438,2]
[393987205,1763163040595,-500.0,0.00016438,2]
[393987207,1763163040604,-4959.03952382,0.00016472,2]
[393987209,1763163040614,-500.0,0.00016548,2]
[393987211,1763163040623,-1741.39464279,0.00016614,2]
[393987213,1763163040632,-150.43062293,0.00016623,2]
[393987215,1763163040641,-4588.93121061,0.00016627,2]
[393987217,1763163040650,-4203.255522,0.00016627,2]
[393987219,1763163040660,-15853.01,0.00016663,2]
[393987221,1763163040669,-2766.26143325,0.00016704,2]
[393987223,1763163040678,-154.51270838,0.00016754,2]
[393987225,1763163040687,-694.73322408,0.00016768,2]
[393987227,1763163040697,-615.21991021,0.00016768,2]
[393987229,1763163040706,-952.8056478,0.00016768,2]
[393987231,1763163040715,-151.0,0.00016773,2]
[393987233,1763163040724,-321.69,0.00016797,2]
[393987234,1763163040733,-500.0,0.000168,2]
[393987235,1763163040742,-150.0,0.00016807,2]
[393987236,1763163040751,-330.33341059,0.0001688,2]
[393987237,1763163040761,-4588.93121061,0.00016881,2]
[393987238,1763163040770,-4203.255522,0.00016881,2]
[393987239,1763163040780,-3016.0,0.00016923,2]
[393987240,1763163040789,-3016.0,0.00016968,2]
[393987241,1763163040798,-500.0,0.00016973,2]
[393987242,1763163040807,-500.0,0.00016973,2]
[393987262,1763163041031,-500.0,0.00016973,2]
[393987264,1763163041042,-500.0,0.00016973,2]
[393987266,1763163041051,-500.0,0.00016973,2]
[393987268,1763163041061,-500.65948408,0.00016973,2]
[393987270,1763163041070,-502.8335895,0.00016973,2]
[393987272,1763163041080,-500.0,0.00016973,2]
[393987274,1763163041089,-500.0,0.00016973,2]
[393987276,1763163041097,-500.0,0.00016973,2]
[393987278,1763163041106,-488.96912906,0.00016973,2]
[393987280,1763163041115,-500.0,0.00016973,2]
[393987282,1763163041124,-500.0,0.00016973,2]
[393987284,1763163041133,-225.55571202,0.0001699,2]
[393987286,1763163041142,-150.0,0.00016991,2]
[393987288,1763163041151,-3016.0,0.00016997,2]
[393987290,1763163041160,-1000.0,0.00016999,2]
[393987292,1763163041169,-1000.0,0.00016999,2]
[393987293,1763163041178,-1000.0,0.00016999,2]
[393987295,1763163041187,-1000.0,0.00016999,2]
[393987298,1763163041196,-295.77639187,0.00017,2]
[393987300,1763163041206,-1060881.01891882,0.00017,2]
[393987302,1763163041214,-2000.0,0.00017024,2]
[393987304,1763163041224,-2000.0,0.00017024,2]
[393987306,1763163041234,-2000.0,0.00017024,2]
[393987308,1763163041247,-2000.0,0.00017024,2]
[393987310,1763163041256,-222.558,0.00017024,2]
[393987312,1763163041264,-150.43062291,0.00017049,2]
[393987314,1763163041273,-420.0,0.00017057,2]
[393987316,1763163041284,-1000.0,0.000171,6]
[393987318,1763163041292,-171.08533431,0.00017119,2]
[393987320,1763163041301,-1000.0,0.00017123,2]
[393987321,1763163041310,-1000.0,0.00017123,2]
[393987323,1763163041321,-1000.0,0.00017123,2]
[393987325,1763163041330,-1000.0,0.00017123,2]
[393987327,1763163041339,-1000.0,0.00017123,2]
[393987330,1763163041348,-1000.0,0.00017123,2]
[393987331,1763163041357,-1000.0,0.00017123,2]
[393987334,1763163041367,-977.456,0.00017123,2]
[393987335,1763163041376,-152.07,0.00017125,2]
[393987337,1763163041385,-154.51270838,0.00017136,2]
[393987339,1763163041395,-4588.93121061,0.00017136,2]
[393987342,1763163041404,-4203.255522,0.00017136,2]
[393987344,1763163041413,-1680.0,0.00017143,2]
[393987345,1763163041422,-419.2814,0.00017151,2]
[393987348,1763163041432,-250.0,0.00017155,2]
[393987350,1763163041441,-1500.0,0.000172,6]
[393987352,1763163041451,-156.283,0.00017231,2]
[393987353,1763163041459,-250.0,0.00017255,2]
[393987355,1763163041468,-300.0,0.00017255,2]
[393987357,1763163041478,-300.0,0.00017255,2]
[393987359,1763163041487,-300.0,0.00017255,2]
[393987361,1763163041496,-300.0,0.00017255,2]
[393987363,1763163041505,-300.0,0.00017255,2]
[393987365,1763163041515,-2000.0,0.000173,2]
[393987367,1763163041524,-2100.0,0.000173,6]
[393987369,1763163041534,-3016.0,0.00017361,2]
[393987371,1763163041544,-4588.93121061,0.00017391,2]
[393987373,1763163041554,-4203.255522,0.00017391,2]
[393987375,1763163041564,-638.0,0.00017395,2]
[393987377,1763163041574,-2600.0,0.000174,6]
[393987380,1763163041584,-150.43062291,0.00017474,2]
[393987381,1763163041593,-500.0,0.000175,6]
[393987383,1763163041602,-154.51270838,0.00017518,2]
[393987386,1763163041612,-644.81873748,0.00017521,2]
[393987388,1763163041621,-1000.0,0.00017521,2]
[393987389,1763163041630,-1000.0,0.00017521,2]
[393987391,1763163041639,-1000.0,0.00017521,2]
[393987393,1763163041648,-1000.0,0.00017521,2]
[393987395,1763163041658,-500.0,0.000176,6]
[393987397,1763163041668,-638.0,0.00017609,2]
[393987400,1763163041678,-4813.0,0.00017629,2]
[393987401,1763163041688,-1728.789688,0.00017635,2]
[393987404,1763163041697,-1603.0,0.00017638,2]
[393987406,1763163041707,-3429.0,0.00017638,2]
[393987407,1763163041716,-6669.0,0.00017638,2]
[393987409,1763163041725,-1318.0,0.00017638,2]
[393987412,1763163041734,-4813.0,0.00017641,2]
[393987414,1763163041744,-4588.93121061,0.00017645,2]
[393987415,1763163041754,-4203.255522,0.00017645,2]
[393987418,1763163041763,-638.0,0.00017648,2]
[393987420,1763163041773,-4813.0,0.00017682,2]
[393987421,1763163041783,-300.0,0.0001769,2]
[393987423,1763163041792,-500.0,0.00017699,2]
[393987425,1763163041802,-500.0,0.000177,6]
[393987428,1763163041811,-1000.0,0.000177,2]
[393987429,1763163041821,-500.0,0.00017726,2]
[393987431,1763163041831,-4813.0,0.0001776,2]
[393987434,1763163041840,-638.0,0.00017784,2]
[393987436,1763163041850,-500.0,0.000178,6]
[393987438,1763163041860,-991.86211,0.0001782,2]
[393987440,1763163041869,-2500.0,0.0001783,3]
[393987442,1763163041878,-2500.0,0.00017838,3]
[393987444,1763163041888,-2500.0,0.00017847,3]
[393987446,1763163041897,-2500.0,0.00017856,3]
[393987448,1763163041906,-2500.0,0.00017865,3]
[393987450,1763163041915,-500.0,0.00017873,2]
[393987452,1763163041925,-2500.0,0.00017874,3]
[393987454,1763163041934,-2500.0,0.00017874,3]
[393987456,1763163041943,-965.77,0.00017878,2]
[393987458,1763163041952,-1616.99,0.00017878,2]
[393987460,1763163041961,-821.0,0.00017878,2]
[393987462,1763163041971,-1275.0,0.00017878,2]
[393987464,1763163041980,-831.532,0.00017878,2]
[393987466,1763163041989,-1190.0,0.00017878,2]
[393987467,1763163041999,-907.0,0.00017878,2]
[393987470,1763163042008,-2500.0,0.00017882,3]
[393987472,1763163042017,-2500.0,0.00017882,3]
[393987474,1763163042029,-2500.0,0.00017891,3]
[393987476,1763163042038,-2500.0,0.00017891,3]
[393987478,1763163042047,-2232.28708641,0.000179,2]
[393987480,1763163042056,-150.43062291,0.000179,2]
[393987482,1763163042066,-1000.0,0.000179,2]
[393987483,1763163042077,-2712.44774985,0.000179,2]
[393987486,1763163042098,-33313.3716,0.000179,2]
[393987488,1763163042115,-2500.0,0.000179,3]
[393987490,1763163042126,-1000.0,0.000179,2]
[393987491,1763163042135,-919.0,0.000179,6]
[393987493,1763163042146,-154.51270838,0.000179,2]
[393987495,1763163042155,-4588.93121061,0.000179,2]
[393987497,1763163042165,-4203.255522,0.000179,2]
[393987499,1763163042176,-151.43976194,0.000179,3]
[393987500,1763163042187,-1108.64149247,0.000179,2]
[393987502,1763163042199,-12783.30915737,0.000179,2]
[393987504,1763163042209,-171.08533431,0.000179,2]
[393987506,1763163042220,-3671.47646875,0.000179,2]
[393987507,1763163042229,-3615.0,0.000179,2]
[393987509,1763163042240,-991.86211,0.0001793,2]
[393987511,1763163042252,-150.0,0.00017945,2]
[393987513,1763163042263,-150.0,0.00017945,2]
[393987514,1763163042272,-150.0,0.00017945,2]
[393987516,1763163042282,-150.0,0.00017945,2]
[393987518,1763163042292,-150.0,0.00017945,2]
[393987520,1763163042303,-150.0,0.00017945,2]
[393987521,1763163042313,-150.0,0.00017945,2]
[393987523,1763163042322,-150.0,0.00017945,2]
[393987525,1763163042332,-500.0,0.00017945,2]
[393987526,1763163042341,-500.0,0.00017945,2]
[393987528,1763163042351,-500.0,0.00017945,2]
[393987530,1763163042360,-500.0,0.00017945,2]
[393987531,1763163042370,-255.68760807,0.00017945,2]
[393987533,1763163042379,-500.0,0.00017945,2]
[393987535,1763163042388,-500.0,0.00017945,2]
[393987537,1763163042397,-419.0,0.00017945,2]
[393987538,1763163042406,-500.0,0.00017945,2]
[393987540,1763163042415,-500.0,0.00017945,2]
[393987542,1763163042424,-207.47055637,0.00017945,2]
[393987543,1763163042433,-150.0,0.00017945,2]
[393987545,1763163042443,-500.0,0.00017945,2]
[393987547,1763163042451,-150.0,0.00017945,2]
[393987548,1763163042460,-500.0,0.00017945,2]
[393987550,1763163042469,-500.0,0.00017945,2]
[393987552,1763163042478,-505.72343968,0.00017973,2]
[393987553,1763163042487,-161.40495423,0.00017973,2]
[393987555,1763163042496,-500.0,0.00017973,2]
[393987557,1763163042504,-500.0,0.00017973,2]
[393987559,1763163042513,-500.0,0.00017973,2]
[393987561,1763163042522,-205.45206529,0.00017973,2]
[393987562,1763163042531,-306.64280162,0.00017973,2]
[393987564,1763163042540,-178.76322882,0.00017973,2]
[393987566,1763163042549,-500.0,0.00017973,2]
[393987568,1763163042559,-500.0,0.00017973,2]
[393987569,1763163042569,-500.0,0.00017973,2]
[393987571,1763163042579,-500.0,0.00017973,2]
[393987573,1763163042588,-500.0,0.00017973,2]
[393987575,1763163042597,-500.0,0.00017973,2]
[393987577,1763163042607,-500.0,0.00017973,2]
[393987578,1763163042616,-424.32394158,0.00017973,2]
[393987580,1763163042626,-481.92632213,0.00017973,2]
[393987582,1763163042635,-500.0,0.00017973,2]
[393987584,1763163042644,-500.0,0.00017973,2]
[393987585,1763163042653,-500.0,0.00017973,2]
[393987587,1763163042662,-506.83414067,0.00017973,2]
[393987589,1763163042671,-500.0,0.00017973,2]
[393987591,1763163042680,-500.0,0.00017973,2]
[393987592,1763163042689,-500.0,0.00017973,2]
[393987594,1763163042698,-500.0,0.00017973,2]
[393987596,1763163042707,-500.0,0.00017973,2]
[393987598,1763163042717,-209.55981251,0.00017973,2]
[393987600,1763163042725,-436.81359697,0.00017973,2]
[393987601,1763163042734,-507.74347007,0.00017982,2]
[393987603,1763163042744,-225.55571202,0.0001799,2]
[393987605,1763163042754,-225.55571202,0.0001799,2]
[393987607,1763163042763,-4460.3609638,0.00017994,2]
[393987608,1763163042772,-21204.1333247,0.00017999,2]
[393987610,1763163042782,-395025.5613905,0.00017999,2]
[393987612,1763163042791,-76642.0283094,0.00017999,2]
[393987614,1763163042800,-3804768.58288081,0.00018,2]
[393987616,1763163042816,-7058.74905742,0.00018,2]
[393987618,1763163042827,-277.30055886,0.00018,2]
[393987620,1763163042838,-5688.935,0.00018,2]
[393987622,1763163042848,-3551.9207777,0.00018,2]
[393987624,1763163042863,-8518.685205,0.00018,2]
[393987626,1763163042874,-18917.1216,0.00018,2]
[393987827,1763163045162,-316.47033406,0.000179,2]
[393987838,1763163045256,-2982.30011009,0.000179,2]
[393987840,1763163045265,-6467.69988991,0.00018,2]
[393987842,1763163045276,-578.28566586,0.00018,2]
[393987978,1763163046371,-472.9725,0.00018,2]
[393987980,1763163046382,-4721.16,0.00018,2]
[393988180,1763163048446,-9697.66716976,0.00018,2]
[393988182,1763163048457,-147361.60842238,0.00018,2]
[393988184,1763163048468,-29914.31463001,0.00018,2]
[393988186,1763163048479,-18690.95995706,0.00018,2]
[393988188,1763163048489,-89997.96263578,0.00018,2]
[393988200,1763163102222,500.0,0.00015595,2]
[393988201,1763163182066,300.0,0.00015595,2]
[393988202,1763163184622,346.94374179,0.00015595,2]
[393988203,1763163185228,500.0,0.000159,5]
[393988204,1763163230198,3019.8129629,0.00015496,2]
[393988205,1763163301156,300.0,0.00015595,2]
[393988206,1763163301188,1200.0,0.00015595,2]
[393988207,1763163350125,153.77104099,0.00015496,2]
[393988208,1763163359010,1870.85694337,0.00015496,2]
[393988209,1763163361958,260.0,0.00015595,2]
[393988215,1763163421256,300.0,0.00015595,2]
[393988216,1763163436213,151.0,0.00015596,2]
[393988217,1763163436880,151.0,0.00015596,2]
[393988218,1763163437570,151.0,0.00015596,2]
[393988219,1763163438204,151.0,0.00015596,2]
[393988220,1763163438855,151.0,0.00015596,2]
[393988221,1763163439460,151.0,0.00015596,2]
[393988222,1763163440108,151.0,0.00015596,2]
[393988223,1763163440733,151.0,0.00015596,2]
[393988224,1763163441354,147.8659567,0.00015596,2]
[393988225,1763163441385,3.1340433,0.00015596,2]
[393988226,1763163441984,151.0,0.00015596,2]
[393988227,1763163442622,151.0,0.00015596,2]
[393988228,1763163443251,151.0,0.00015596,2]
[393988229,1763163481185,300.0,0.00015595,2]
[393988230,1763163495204,151.0,0.00015596,2]
[393988231,1763163496964,378.21870297,0.00015496,2]
[393988232,1763163516682,2500.0,0.00015496,2]
[393988233,1763163601199,1200.0,0.00015595,2]
[393988234,1763163601235,300.0,0.00015595,2]
[393988235,1763163616559,2717.83166661,0.00015496,2]
[393988236,1763163625451,153.77104098,0.00015496,2]
[393988237,1763163661194,300.0,0.00015595,2]
[393988238,1763163673900,1053.0202,0.00015496,2]
[393988239,1763163686418,490.03434614,0.00015496,2]
[393988240,1763163686442,2009.96565386,0.00015496,2]
[393988241,1763163693945,1766.987,0.00015284,2]
[393988242,1763163777362,330.94136516,0.00015496,2]
[393988243,1763163792955,1000.0,0.00015595,2]
[393988244,1763163809651,276.66,0.00013075,2]
[393988245,1763163809863,276.66,0.00014382,2]
[393988246,1763163814304,511.524,0.00041557,30]
[393988247,1763163856073,373.5387,0.00015496,2]
[393988248,1763163869182,2145.39962361,0.00015496,2]
[393988249,1763163890753,153.77104098,0.00015496,2]
[393988250,1763163901137,300.0,0.00015595,2]
[393988251,1763163901436,300.0,0.00015595,2]
[393988252,1763163901742,1066.08661639,0.00015595,2]
[393988253,1763163901768,133.91338361,0.00015595,2]
[393988271,1763163971677,171.86246686,0.00015496,2]
[393988283,1763164004795,3405.28328766,0.00015496,2]
[393988285,1763164025257,400.0,0.000159,5]
[393988314,1763164074138,5241.4562,0.00015496,2]
[393988315,1763164088057,1047.49466187,7.945e-05,2]
[393988316,1763164088084,3952.50533813,7.945e-05,2]
[393988317,1763164132900,289.57369448,0.00015496,2]
[393988318,1763164146058,153.77104098,0.00015496,2]
[393988319,1763164157462,5604.15992641,0.00015496,2]
[393988320,1763164157489,10000.01,0.00015496,2]
[393988321,1763164157515,10000.01,0.00015496,2]
[393988322,1763164157542,10000.01,0.00015496,2]
[393988323,1763164157570,10000.01,0.00015496,2]
[393988324,1763164157598,10000.01,0.00015496,2]
[393988325,1763164157628,10000.01,0.00015496,2]
[393988326,1763164157655,10000.01,0.00015496,2]
[393988327,1763164157681,10000.01,0.00015496,2]
[393988328,1763164157706,10000.01,0.00015496,2]
[393988329,1763164157736,49674.79177359,0.00015496,2]
[393988330,1763164180458,2674.0271,0.00015496,2]
[393988331,1763164186613,729.8436,0.00015496,2]
[393988332,1763164201187,300.0,0.00015595,2]
[393988333,1763164201489,1200.0,0.00015595,2]
[393988334,1763164201528,300.0,0.00015595,2]
[393988337,1763164231421,-1272.87769172,0.00015596,2]
[393988338,1763164231458,-378.77820333,0.00015596,2]
[393988339,1763164231470,-313.67,0.00015596,2]
[393988340,1763164231482,-285.4597564,0.00015596,2]
[393988341,1763164231492,-270.9459996,0.00015596,2]
[393988342,1763164231503,-417.44544235,0.00015596,2]
[393988343,1763164231517,-19312.59149984,0.00015596,2]
[393988344,1763164231528,-440.92217511,0.00015596,2]
[393988345,1763164231647,-385.94120146,0.00015596,2]
[393988347,1763164231658,-4761.37515894,0.00015596,2]
[393988349,1763164231670,-5473.36447125,0.00015596,2]
[393988350,1763164231679,-1000.0,0.00015596,2]
[393988352,1763164231688,-195.0,0.00015596,2]
[393988354,1763164231697,-250.0,0.00015596,2]
[393988355,1763164231705,-195.0,0.00015596,2]
[393988356,1763164231714,-181.30254624,0.00015596,2]
[393988357,1763164231724,-990.30647574,0.00015596,2]
[393988359,1763164231733,-195.0,0.00015596,2]
[393988361,1763164231742,-238.36268509,0.00015597,2]
[393988363,1763164231751,-166.66,0.00015622,2]
[393988365,1763164231759,-276.66,0.0001569,2]
[393988367,1763164231769,-2145.39962358,0.00015763,2]
[393988369,1763164231778,-96.12886708,0.00015763,2]
[393988374,1763164236686,-660.20431716,0.00015763,2]
[393988375,1763164236717,-151.0854552,0.00015763,2]
[393988389,1763164237648,151.0,0.00015763,2]
[393988408,1763164237810,440.13621144,0.00015763,2]
[393988530,1763164239155,293.42414096,0.00015763,2]
[393988566,1763164239441,-3309.15442053,0.00015763,2]
[393988567,1763164239450,-289.57369445,0.00015839,2]
[393988569,1763164239459,-166.66,0.00015951,2]
[393988571,1763164239468,-3603.17,0.00015968,2]
[393988573,1763164239476,-500.0,0.00015991,2]
[393988575,1763164239485,-500.0,0.00015991,2]
[393988577,1763164239494,-2145.39962358,0.0001603,2]
[393988579,1763164239503,-3405.28328761,0.0001603,2]
[393988581,1763164239512,-289.57369445,0.00016183,2]
[393988583,1763164239520,-2262.85,0.00016225,2]
[393988585,1763164239529,-166.66,0.0001628,2]
[393988587,1763164239538,-2145.39962358,0.00016297,2]
[393988589,1763164239546,-3405.28328761,0.00016297,2]
[393988591,1763164239555,-150.0,0.00016383,2]
[393988593,1763164239564,-2942.73,0.00016397,2]
[393988595,1763164239572,-50406.78,0.00016412,2]
[393988597,1763164239581,-457.54053197,0.00016438,2]
[393988599,1763164239590,-2751.0,0.00016446,2]
[393988601,1763164239599,-289.57369445,0.00016526,2]
[393988603,1763164239607,-2145.39962358,0.00016564,2]
[393988605,1763164239616,-3405.28328761,0.00016564,2]
[393988607,1763164239625,-1928.81,0.000166,2]
[393988609,1763164239638,-166.66,0.00016609,2]
[393988611,1763164239647,-190.37,0.00016712,2]
[393988613,1763164239656,-235.9,0.00016748,2]
[393988615,1763164239666,-730.66084712,0.0001682,2]
[393988617,1763164239676,-2145.39962358,0.00016832,2]
[393988619,1763164239685,-3405.28328761,0.00016832,2]
[393988621,1763164239694,-289.57369445,0.0001687,2]
[393988623,1763164239703,-2000.0,0.00016906,2]
[393988625,1763164239714,-2000.0,0.00016906,2]
[393988627,1763164239723,-2000.0,0.00016906,2]
[393988629,1763164239732,-2000.0,0.00016906,2]
[393988631,1763164239741,-2000.0,0.00016906,2]
[393988633,1763164239750,-2000.0,0.00016906,2]